Cogmind - Beta 16.1 @@@ ROGUE MODE // 2026.02.26 @ 07:25:55 Player: Florist Result: Escaped! Performance ------------- Evolutions (9) 4500 Regions Visited (24) 4800 Robots Destroyed (322) 1610 Value Destroyed (9482) 9482 Prototype IDs (40) 800 Alien Tech Used (2) 400 Bonus (5139) 5139 TOTAL SCORE: 26731 Bonus ------- High Alert Combat Kills 871 Follower Combat Kills 2328 Met Data Miner 300 Met Zhirov 300 Built Enhanced Grunts 300 A7 Reached Mainframe 300 Win 3000 Friendly Fire -2260 Cogmind --------- Core Integrity 1404/1600 Matter 290/300 Energy 178/190 System Corruption 3% Temperature Warm (138) Movement Flying (20) Location To Epsilon Eridani Parts ------- > --- POWER (1) -------- Light Quantum Reactor > --- PROPULSION (9) --- Impulse Thruster Impulse Thruster Impulse Thruster Impulse Thruster Impulse Thruster Impulse Thruster Improved Diametric Drive > --- UTILITY (12) ----- Advanced Coolant Injector Medium Storage Unit Machine Analyzer Advanced Visual Processing Unit Advanced Sensor Array Advanced Signal Interpreter Medium Regenerative Plating Hacking Suite Improved Hacking Suite Advanced Hacking Suite System Shield Advanced System Shield > --- WEAPON (3) ------- Chainsword Great Axe > --- INVENTORY (10) --- Energy Well (350) Advanced Sensor Array Advanced Sensor Array Advanced Signal Interpreter Cloaking Device Hypervelocity Multirail Gamma Bomb Array Enhanced Force Lance Peak State ------------ > --- POWER ------------ Light Quantum Reactor > --- PROPULSION ------- Impulse Thruster Impulse Thruster Impulse Thruster Impulse Thruster Impulse Thruster Impulse Thruster Impulse Thruster Impulse Thruster Improved Diametric Drive > --- UTILITY ---------- Advanced Coolant Injector Medium Storage Unit Machine Analyzer Advanced Visual Processing Unit Advanced Sensor Array Advanced Signal Interpreter Medium Regenerative Plating Hacking Suite Improved Hacking Suite Advanced Hacking Suite System Shield Advanced System Shield > --- WEAPON ----------- Chainsword Great Axe Molecular Scythe > --- INVENTORY -------- Impulse Thruster Energy Well Advanced Sensor Array Advanced Sensor Array Advanced Signal Interpreter Cloaking Device Hypervelocity Multirail Gamma Bomb Array Enhanced Force Lance [Rating: 150] Favorites ----------- Power Improved Deuterium Engine Engine Improved Deuterium Engine Power Core Light Fission Core Reactor Heavy Antimatter Reactor Propulsion Medium Treads Treads Medium Treads Leg Advanced Myomer Leg Wheel Wheel Hover Unit Improved Antigrav System Flight Unit Impulse Thruster Utility Improved Melee Analysis Suite Device Improved Sensor Array Storage Large Storage Unit Processor Improved Melee Analysis Suite Hackware Improved Hacking Suite Protection Medium Regenerative Plating Weapon Axe Energy Gun Small Laser Energy Cannon Beam Cannon Ballistic Gun Hypervelocity Multirail Launcher Heavy Missile Launcher Slashing Weapon Axe Piercing Weapon Force Lance Special Melee Weapon Datajack Build | -11 -10 -10 -9 -8 -7 -7 -7 -7 -6 -6 -6 -6 -6 -6 -5 -5 -5 -5 -4 -4 -3 -3 -2 -1 ------- Run | Yrd Mat Min Mat Mat Fac Low Low Dat Pro Fac Ext Cet Arc Hub Fac Upp Upp Zhi Pro Fac Res Tes Res Acc Slots Evolved 18 | . . . 2 2 2 . . . . 2 . . . . 2 . . . . 2 2 . 2 2 Power . | . . . . . . . . . . . . . . . . . . . . . . . . . Propulsion 7 | . . . 1 1 . . . . . . . . . . . . . . . . 1 . 2 2 Utility 10 | . . . 1 1 1 . . . . 2 . . . . 2 . . . . 2 1 . . . Weapon 1 | . . . . . 1 . . . . . . . . . . . . . . . . . . . Parts Attached 253 | 7 5 6 29 16 22 1 5 . 1 8 11 4 4 4 9 5 12 6 1 28 28 9 14 18 Power 25 | 1 . . 3 3 2 . . . . 1 2 . . . 2 1 3 1 . 3 1 . 1 1 Engine 13 | 1 . . 2 2 2 . . . . . 1 . . . . . 2 . . 2 . . 1 . Core 9 | . . . 1 1 . . . . . 1 1 . . . 2 1 1 . . 1 . . . . Reactor 3 | . . . . . . . . . . . . . . . . . . 1 . . 1 . . 1 Propulsion 82 | 2 . 2 11 4 11 . 3 . . 2 1 . 3 . 4 1 2 3 . 3 15 3 3 9 Treads 43 | 2 . 2 10 4 5 . 3 . . 2 1 . 3 . 4 1 1 . . 1 4 . . . Leg 3 | . . . . . . . . . . . . . . . . . . 3 . . . . . . Wheel 5 | . . . . . 4 . . . . . . . . . . . 1 . . . . . . . Hover 6 | . . . 1 . 1 . . . . . . . . . . . . . . . . 2 2 . Flight 25 | . . . . . 1 . . . . . . . . . . . . . . 2 11 1 1 9 Utility 104 | 2 1 1 9 7 7 . 1 . 1 4 4 4 1 4 3 1 6 2 1 17 9 4 8 7 Device 40 | 1 . 1 4 1 2 . . . 1 3 2 . 1 . 1 1 3 1 . 6 4 3 2 3 Storage 6 | 1 1 . . . . . 1 . . . . . . . . . . . . 2 . . 1 . Processor 24 | . . . 1 2 2 . . . . 1 1 . . 1 1 . 2 . . 4 5 . 4 . Hackware 17 | . . . . . . . . . . . . 3 . 3 1 . . . . 4 . 1 1 4 Protection 17 | . . . 4 4 3 . . . . . 1 1 . . . . 1 1 1 1 . . . . Artifact . | . . . . . . . . . . . . . . . . . . . . . . . . . Weapon 42 | 2 4 3 6 2 2 1 1 . . 1 4 . . . . 2 1 . . 5 3 2 2 1 Energy Gun 11 | 2 1 3 4 . . . . . . . . . . . . . . . . 1 . . . . Energy Cannon 4 | . 1 . . . . . . . . . . . . . . . . . . 2 . 1 . . Ballistic Gun 1 | . . . . . . . . . . . . . . . . . . . . . . 1 . . Ballistic Cannon . | . . . . . . . . . . . . . . . . . . . . . . . . . Launcher 6 | . 2 . . . . 1 . . . . . . . . . . . . . 1 2 . . . Special Weapon . | . . . . . . . . . . . . . . . . . . . . . . . . . Impact Weapon . | . . . . . . . . . . . . . . . . . . . . . . . . . Slashing Weapon 18 | . . . 2 2 2 . 1 . . 1 3 . . . . 2 1 . . 1 1 . 1 1 Piercing Weapon 1 | . . . . . . . . . . . . . . . . . . . . . . . 1 . Special Melee Weapon 1 | . . . . . . . . . . . 1 . . . . . . . . . . . . . Unidentified Prototypes 20 | . . . 3 . 2 . . . . . . 1 . . . . . 5 . 1 4 3 1 . Corrupted Parts 6 | . . . . . . . . . . . . . . . . . 1 . . . 5 . . . System Corruption 31 | . . . . . . . . . . . . . . . . . 2 . . . 29 . . . Parts Lost 107 | . . 3 15 10 4 . . . . . 1 . . 2 2 6 10 . 4 17 19 7 1 6 Power 15 | . . . 3 3 1 . . . . . . . . 1 1 1 1 . . 3 . . 1 . Propulsion 41 | . . 2 4 5 2 . . . . . . . . . 1 1 5 . . 6 10 1 . 4 Utility 35 | . . . 5 2 1 . . . . . 1 . . 1 . 1 2 . 2 7 6 6 . 1 Weapon 16 | . . 1 3 . . . . . . . . . . . . 3 2 . 2 1 3 . . 1 Highest Loss Streak 9 | . . 2 7 7 2 . . . . . 1 . . 2 1 4 9 . 2 5 9 3 1 2 To Critical Strikes . | . . . . . . . . . . . . . . . . . . . . . . . . . Average Backups 11 | 2 10 13 13 13 13 14 14 14 14 13 14 13 12 15 12 11 7 10 11 5 6 3 4 8 Power . | . . . . . . . . . . . 1 2 2 2 . . . 2 2 . . . . . Propulsion 1 | 1 3 2 2 . . . . 1 1 1 2 2 1 1 . 1 . . 1 . . . . 1 Utility 6 | . 4 6 6 7 7 9 8 8 8 6 6 5 4 8 6 8 6 6 7 3 4 1 1 4 Weapon 3 | . 1 4 2 3 4 5 5 5 5 5 4 4 4 4 3 2 1 1 . . . 1 2 2 Tool/Special . | . . . . . . . . . . . . . . . . . . . . . . . . . Unused Backups 40 | . 3 1 8 1 4 . 1 . . 1 2 . 2 2 . . . 1 . 4 5 . . 5 Power 1 | . . . . . . . . . . . . . . . . . . . . 1 . . . . Propulsion 12 | . 2 . 5 . 1 . . . . . . . . . . . . . . . 4 . . . Utility 19 | . . 1 1 1 1 . 1 . . 1 . . 2 2 . . . 1 . 3 1 . . 4 Weapon 7 | . 1 . 2 . 1 . . . . . 2 . . . . . . . . . . . . 1 Tool/Special 1 | . . . . . 1 . . . . . . . . . . . . . . . . . . . Average Slot Usage (%) 88 | . 100 99 93 95 87 92 92 92 92 92 95 98 100 100 99 98 68 78 76 51 60 56 68 91 Engine 4 | . 14 14 6 2 5 7 7 7 7 . 3 . . . . . . . . . 1 . . . Core 2 | . . . 3 4 . . . . . 5 2 6 6 6 4 4 4 2 . . . . . . Treads 21 | . 28 27 29 34 18 30 30 30 30 26 26 26 26 26 22 22 4 2 . 1 1 . . . Flight 1 | . . . . . . . . . . . . . . . . . . . . 3 9 4 8 29 Device 10 | . 14 14 10 8 5 7 7 7 13 20 19 11 13 10 10 10 14 16 11 5 7 5 6 6 Storage 7 | . 14 14 11 9 7 7 7 7 7 6 6 6 6 6 4 5 5 5 5 1 2 1 2 4 Processor 14 | . . . 1 15 16 15 15 15 15 19 20 20 20 20 17 17 22 23 23 24 21 22 25 19 Hackware 2 | . . . . . . . . . . . . . . 3 11 11 1 . . 4 8 8 5 13 Protection 4 | . . . 8 2 5 7 7 7 1 . . 5 6 4 4 5 5 5 5 1 . 2 4 4 Energy Gun 3 | . 21 15 11 . . . . . . . . . . . . . . . . . . . . . Slashing Weapon 10 | . . . 9 17 19 14 14 14 10 13 15 17 20 20 17 15 5 5 4 1 3 4 4 9 Peak Build Rating 150 | 7 8 15 26 30 47 47 47 43 44 58 69 72 72 65 80 81 79 79 80 74 105 105 113 150 Average Rating 48 | 5 7 12 20 27 37 46 45 42 43 54 60 67 68 64 75 79 50 67 75 50 67 69 93 133 On Entrance 49 | . 7 8 10 16 16 46 47 42 43 43 58 69 70 65 55 80 79 59 79 65 61 50 67 113 Avg Prop Armor Cover (%) 11 | . . . . . 11 . . . . 9 . . . . . . 9 8 . 17 16 11 7 9 Naked Turns . | . . . . . . . . . . . . . . . . . . . . . . . . . Heaviest Build 68 | 11 28 32 41 39 60 51 51 51 51 45 64 68 52 52 59 59 56 59 63 51 27 26 27 46 Greatest Support 152 | 40 40 40 60 80 104 104 104 94 94 101 108 108 108 89 98 103 103 90 90 90 152 24 30 63 Greatest Overweight (x) 18 | 1 . 1 4 8 8 . . . . . . . . . . . 18 1 . 5 3 3 1 1 Average Overweight (x) . | . . . . . . . . . . . . . . . . . 3 . . . . . . . Largest Inventory Capacity 15 | 8 15 15 15 15 15 15 15 15 15 15 15 15 15 15 15 15 15 15 15 15 10 5 10 10 Average Capacity 14 | 7 14 15 15 15 15 15 15 15 15 15 15 15 15 15 14 15 15 15 15 8 7 5 5 10 Most Carried 15 | 4 13 15 15 15 15 15 15 15 15 15 15 15 15 15 14 13 12 13 13 12 10 5 6 10 Average Carried 12 | 2 10 14 14 14 14 15 14 15 15 14 14 13 12 15 12 11 7 11 12 6 6 3 4 9 Final Capacity 15 | 8 15 15 15 15 15 15 15 15 15 15 15 15 15 15 15 15 15 15 15 5 5 5 10 10 Final Carried 15 | 4 11 15 12 13 15 15 15 15 15 15 15 12 15 15 13 11 10 13 12 4 5 5 6 8 Class Distribution -------------------- 30% | Gladiator 23% | Mutant 14% | Scavenger-Mutant 7% | Commander-Gladiator 5% | Hacker-Gladiator 4% | Scavenger-Gladiator 4% | Assassin 3% | Hacker-Mutant Dominant Class ---------------- Mutant | -10/Materials Scavenger-Mutant | -10/Mines Mutant | -9/Materials Assassin | -8/Materials Gladiator | -7/Factory Gladiator | -7/Lower Caves Gladiator | -7/Lower Caves Gladiator | -7/Data Miner Gladiator | -6/Proximity Caves Gladiator | -6/Factory Gladiator | -6/Extension Commander-Gladiator | -6/Cetus Commander-Gladiator | -6/Archives Commander-Gladiator | -6/Hub_04(d) Scavenger-Gladiator | -5/Factory Hacker-Gladiator | -5/Upper Caves Mutant | -5/Upper Caves Scavenger-Mutant | -5/Zhirov Scavenger-Mutant | -4/Proximity Caves Mutant | -4/Factory Hacker-Mutant | -3/Research Hacker-Mutant | -3/Testing Scavenger-Scout | -2/Research Wizard-Scout | -1/Access Resources | -11 -10 -10 -9 -8 -7 -7 -7 -7 -6 -6 -6 -6 -6 -6 -5 -5 -5 -5 -4 -4 -3 -3 -2 -1 ----------- Run | Yrd Mat Min Mat Mat Fac Low Low Dat Pro Fac Ext Cet Arc Hub Fac Upp Upp Zhi Pro Fac Res Tes Res Acc Matter Collected 4856 | 270 118 319 466 287 245 76 92 . 255 10 343 175 79 70 178 152 128 90 108 367 336 274 198 220 Remotely 10 | . . . 10 . . . . . . . . . . . . . . . . . . . . . Salvage Created 13923 | 106 516 540 2635 1051 776 213 338 . 304 96 950 29 331 514 1045 461 189 281 276 1009 796 274 366 827 Parts 727 | 9 47 31 146 51 46 12 15 . 3 9 52 2 21 19 51 19 7 . 9 54 47 14 16 47 Haulers Intercepted 21 | . 2 . 6 . 2 . . . . . . . . 2 1 . . . . 4 2 . 1 1 Recyclers Shooed 9 | . 1 . 5 . 1 . . . . . . . . . . . . . . . 1 . 1 . Parts Field Recycled . | . . . . . . . . . . . . . . . . . . . . . . . . . Retrieved Matter . | . . . . . . . . . . . . . . . . . . . . . . . . . Parts Self-Destructed 45 | . . . . . . 7 12 . 2 . . . . . . 11 5 . 8 . . . . . Prevented 6 | . . . . . . . 1 . . . . . . . . . 5 . . . . . . . Parts Restored . | . . . . . . . . . . . . . . . . . . . . . . . . . Kills | -11 -10 -10 -9 -8 -7 -7 -7 -7 -6 -6 -6 -6 -6 -6 -5 -5 -5 -5 -4 -4 -3 -3 -2 -1 ------- Run | Yrd Mat Min Mat Mat Fac Low Low Dat Pro Fac Ext Cet Arc Hub Fac Upp Upp Zhi Pro Fac Res Tes Res Acc Combat Hostiles Destroyed 181 | . 14 15 38 17 7 3 6 . 6 1 14 . . 2 9 8 2 . 10 12 8 2 . 7 Melee 85 | . . . 16 13 7 . 6 . . 1 10 . . 2 9 4 2 . 5 4 1 . . 5 Guns 30 | . 8 3 17 . . . . . . . . . . . . . . . . . . 2 . . Cannons 3 | . 1 2 . . . . . . . . . . . . . . . . . . . . . . AOE 57 | . 4 9 4 4 . 3 . . 6 . 4 . . . . 4 . . 5 7 5 . . 2 Classes Destroyed 22 | 2 6 1 3 3 1 1 2 . 1 . . . . . . . 1 . . 1 . . . . Worker 27 | . 1 1 4 1 5 . . . . . . . . 3 1 . . . . 3 3 . 3 2 Builder 18 | . . . 2 1 2 . . . . 1 2 . . . 2 . . . . 2 3 . 1 2 Tunneler 5 | 2 . . 1 . . . . . . . . . . . 1 . . . . . . . . 1 Hauler 21 | . 2 . 6 . 2 . . . . . . . . 2 1 . . . . 4 2 . 1 1 Recycler 25 | 1 . 1 7 3 3 . . . . . 2 . . 1 3 . . . . . 1 1 1 1 Minesweeper 1 | . . . . . . . 1 . . . . . . . . . . . . . . . . . Mechanic 3 | . . 1 1 . . . . . . . . . . . . . . . . 1 . . . . Operator 20 | . 2 . 2 . . . . . . . 3 . 9 1 . . . . . . . 1 1 1 Drone 3 | . . . . . . . . . 2 . . . . . . . . . 1 . . . . . Watcher 18 | . 3 . 5 3 . . . . . 1 . 1 . . . . . . . . . . 2 3 Swarmer 52 | . 9 3 7 4 1 3 2 . 4 . 4 . . . . 1 . . 5 3 1 . . 5 Cutter 8 | . . . . . . . . . . . . . . . . . . . . 3 5 . . . Grunt 68 | . 5 12 23 7 1 . . . . . 7 . . 1 4 1 . . 3 2 2 . . . Brawler 5 | . . . . 3 . . . . . . 1 . . . . . . . 1 . . . . . Duelist 7 | . . . 1 . . . . . . . 1 . . . . 5 . . . . . . . . Sentry 15 | . . . 7 1 2 . 1 . . . 1 . . 1 . 1 1 . . . . . . . Specialist 1 | . . . . 1 . . . . . . . . . . . . . . . . . . . . Hunter 6 | . . . . 1 . . . . . . . . . . 1 2 . . . 2 . . . . Programmer 15 | . . . . . 3 . 1 . . 1 . . . . 4 . . . . 2 . 2 . 2 Behemoth 1 | . . . . . . . . . . . . . . . . . 1 . . . . . . . Decomposer 1 | . . . . . . . . . . . . . . . . . 1 . . . . . . . Samaritan 7 | . . . . . . 5 1 . 1 . . . . . . . . . . . . . . . Thug 2 | . . 1 . . . . 1 . . . . . . . . . . . . . . . . . Mutant 1 | . . . . . . . 1 . . . . . . . . . . . . . . . . . Best Kill Streak 6 | 2 4 3 5 4 3 3 3 . 4 2 5 1 4 2 3 6 1 . 5 4 6 3 3 3 Combat Bots Only 6 | . 3 3 5 4 2 3 3 . 4 1 4 . . 1 2 6 1 . 5 3 3 2 . 3 Max Kills in Single Turn 3 | 1 2 3 2 2 1 1 1 . 2 1 3 1 1 1 1 2 1 . 3 3 3 1 1 1 Gunslinging 1 | . . . 1 . . . . . . . . . . . . . . . . . . . . . Exploded 3 | . 2 2 1 2 . 1 . . 2 . 3 . . . . 2 . . 3 2 2 . . 1 Melee 2 | . . . 1 1 1 . 1 . . 1 2 . . 1 1 1 1 . 1 1 1 . . 1 Uniques/NPCs Destroyed . | . . . . . . . . . . . . . . . . . . . . . . . . . Combat | -11 -10 -10 -9 -8 -7 -7 -7 -7 -6 -6 -6 -6 -6 -6 -5 -5 -5 -5 -4 -4 -3 -3 -2 -1 -------- Run | Yrd Mat Min Mat Mat Fac Low Low Dat Pro Fac Ext Cet Arc Hub Fac Upp Upp Zhi Pro Fac Res Tes Res Acc Hostile Shots Fired 1655 | . 62 54 184 152 91 5 62 . 1 4 71 17 . 36 50 92 53 . 114 218 238 42 15 94 Missed 522 | . 17 11 38 47 26 3 16 . 1 . 15 5 . 9 13 24 15 . 45 55 110 14 10 48 Hits 1133 | . 45 43 146 105 65 2 46 . . 4 56 12 . 27 37 68 38 . 69 163 128 28 5 46 Melee 44 | . . . 5 2 . . . . . . 5 . . . . 5 . . 3 16 8 . . . Projectile 1089 | . 45 43 141 103 65 2 46 . . 4 51 12 . 27 37 63 38 . 66 147 120 28 5 46 AOE 8 | . . . . . . . . . . . . . . . 2 . . . . 1 5 . . . Critical Strikes 46 | . . . 3 2 . . 1 . . . 2 2 . . 4 4 1 . 2 12 8 3 . 2 Actively Blocked 13 | . . . . . . . . . . . . . . . . . . . . 6 7 . . . Part Disruptions 2 | . . . . . . . . . . 1 . . . . . . . . . . 1 . . . Damage Taken 19880 | . 413 575 2026 2020 677 37 602 . . 62 804 175 26 231 773 1528 966 . 1282 2986 2681 692 94 1230 Core 4006 | . 34 119 248 470 107 . 63 . . . 80 . . 5 42 43 127 . 248 921 1099 181 23 196 Absorbed by Shields 227 | . . . . . . . . . . . 186 41 . . . . . . . . . . . . Ignored by Resistances 98 | . . . . . . . . . . . . 98 . . . . . . . . . . . . Regen/Repaired (Parts) 2483 | . . . . . . . . . . . . 66 12 79 528 250 364 22 269 116 84 131 219 343 Core Remaining (%) 55 | 100 . 38 38 14 . . . . 75 . . . . 90 . . . . 54 15 . 1 98 87 Volleys Fired 273 | 9 54 45 84 4 . 4 . . 5 . 2 4 . . . 5 . . 6 26 9 12 . 4 Largest 2 | 2 2 2 2 1 . 1 . . 1 . 1 1 . . . 1 . . 1 2 1 1 . 1 Hottest 165 | 80 100 135 140 30 . 39 . . 39 . 39 39 . . . 39 . . 39 165 80 50 . 80 Shots Fired 446 | 18 101 78 156 5 . 4 . . 7 . 2 4 . . . 5 . . 6 37 9 10 . 4 Gun 290 | 18 87 31 142 . . . . . . . . . . . . . . . . 2 . 10 . . Cannon 81 | . 11 34 10 . . . . . . . . . . . . . . . . 26 . . . . Launcher 75 | . 3 13 4 5 . 4 . . 7 . 2 4 . . . 5 . . 6 9 9 . . 4 Special . | . . . . . . . . . . . . . . . . . . . . . . . . . Kinetic 10 | . . . . . . . . . . . . . . . . . . . . . . 10 . . Thermal 269 | 18 98 65 73 . . . . . . . . . . . . . . . . 15 . . . . Explosive 53 | . 3 13 4 5 . 4 . . 7 . 2 4 . . . 5 . . 6 . . . . . Electromagnetic 114 | . . . 79 . . . . . . . . . . . . . . . . 22 9 . . 4 Robot Hit Streak 13 | 3 10 13 11 1 . 1 . . 2 . . . . . . 2 . . 3 5 5 5 . 1 Robot Miss Streak 12 | 3 4 3 8 2 . 2 . . 1 . . . . . . 1 . . 3 12 3 3 . 4 Penetration Max . | . . . . . . . . . . . . . . . . . . . . . . . . . Secondary Targets 4 | . 1 . 3 . . . . . . . . . . . . . . . . . . . . . Max Gunslinging Chain 1 | . 1 . 1 . . . . . . . . . . . . . . . . . . . . . Shots Hit Robots 729 | 10 63 47 166 69 43 9 21 . 11 4 32 11 13 22 36 27 17 5 19 25 21 7 18 33 Core Hits 435 | 4 32 32 84 30 13 10 5 . 11 3 22 18 5 11 15 18 5 3 19 45 22 3 5 20 Critical Kills 4 | . . 1 . . . . . . . . . . . . . . . . . . . 3 . . Critical Parts Destroyed 4 | . . . . . . . . . . . . . . . . . . . . . . 4 . . Critical Strikes 49 | . . 3 7 6 4 . 2 . . . 1 2 . 4 5 3 2 . . . 1 7 . 2 Burn 5 | . . 2 3 . . . . . . . . . . . . . . . . . . . . . Meltdown 1 | . . 1 . . . . . . . . . . . . . . . . . . . . . . Destroy 7 | . . . . . . . . . . . . . . . . . . . . . . 7 . . Sever 36 | . . . 4 6 4 . 2 . . . 1 2 . 4 5 3 2 . . . 1 . . 2 Melee Attacks 712 | . . . 71 91 58 8 33 . 12 5 47 11 16 24 60 29 18 5 25 13 39 13 36 98 Impact . | . . . . . . . . . . . . . . . . . . . . . . . . . Slashing 710 | . . . 71 91 58 8 33 . 12 5 45 11 16 24 60 29 18 5 25 13 39 13 36 98 Piercing . | . . . . . . . . . . . . . . . . . . . . . . . . . Sneak Attacks 143 | . . . 10 13 17 8 3 . 1 2 7 11 13 10 12 6 1 . . 9 4 . 6 10 Combat Hostiles 4 | . . . . . . . . . . . . . . 2 . . . . . . . . . 2 Follow-up Attacks 86 | . . . 6 12 9 . 4 . 2 1 6 5 2 7 13 8 2 . . . . . . 9 Damage Inflicted 36274 | 111 974 1410 4938 2783 2358 809 1185 . 1168 277 2141 1151 1405 1393 2133 1523 721 443 1350 2544 1597 143 1433 2284 Guns 2930 | 111 631 342 1773 . . . . . . . . . . . . . . . . . . 73 . . Cannons 938 | . 120 372 89 . . . . . . . . . . . . . . . . 357 . . . . Explosions 6599 | . 220 696 593 184 . 145 . . 562 . 426 447 . . . 395 . . 762 1106 863 . . 200 Melee 25551 | . . . 2483 2599 2358 664 1185 . 606 277 1715 704 1405 1390 2133 1128 721 443 577 842 734 70 1433 2084 Ramming 256 | . 3 . . . . . . . . . . . . 3 . . . . 11 239 . . . . Kinetic 73 | . . . . . . . . . . . . . . . . . . . . . . 73 . . Thermal 3734 | 111 751 770 1029 . . . . . . . . . . . . . . . . 998 54 . . 21 Explosive 4157 | . 220 640 281 184 . 145 . . 562 . 426 447 . . . 395 . . 762 . 95 . . . Electromagnetic 2503 | . . . 1145 . . . . . . . . . . . . . . . . 465 714 . . 179 Impact . | . . . . . . . . . . . . . . . . . . . . . . . . . Slashing 25551 | . . . 2483 2599 2358 664 1185 . 606 277 1715 704 1405 1390 2133 1128 721 443 577 842 734 70 1433 2084 Piercing . | . . . . . . . . . . . . . . . . . . . . . . . . . Highest Corruption 40 | . 3 3 . 4 . . 6 6 6 1 7 7 7 . 8 6 8 . . 2 34 40 . 3 Average Corruption 5 | . 1 3 . 4 . . 5 6 6 1 6 7 5 . 2 6 5 . . 1 13 35 . 2 Corruption Purged 21 | . . . . . . . . . . . . . 7 . 6 . 8 . . . . . . . Corruption Blocked . | . . . . . . . . . . . . . . . . . . . . . . . . . Effects 275 | . 9 18 . 31 . . 31 3 31 . 46 12 8 . 7 19 10 . . 3 15 29 . 3 Message Errors 50 | . 3 3 . 5 . . 5 . 9 . 8 1 1 . 2 4 2 . . 1 3 3 . . Matter Fused 66 | . 1 3 . 11 . . 3 1 10 . 13 3 3 . 1 5 2 . . . 3 7 . . Heat Flow Errors 34 | . . 2 . 3 . . 8 . 3 . 6 2 1 . 2 3 . . . . 1 3 . . Energy Discharges 37 | . 2 3 . 4 . . 7 . 4 . 8 3 1 . 1 2 1 . . . . 1 . . Parts Rejected 1 | . . . . . . . . . . . . . . . . . . . . . 1 . . . Parts Fused 5 | . 1 . . 1 . . 1 . . . . . . . . 1 1 . . . . . . . Data Loss (minor) 38 | . 1 4 . 2 . . 6 1 1 . 6 2 . . 1 2 3 . . 2 3 1 . 3 Data Loss (major) 18 | . 1 1 . 1 . . 1 1 1 . 4 1 1 . . 2 . . . . 1 3 . . Misfires 6 | . . 2 . 2 . . . . 2 . . . . . . . . . . . . . . . Alerts 7 | . . . . 1 . . . . 1 . 1 . 1 . . . 1 . . . . 2 . . Misdirections 10 | . . . . . . . . . . . . . . . . . . . . . 3 7 . . Weapon Failures 3 | . . . . 1 . . . . . . . . . . . . . . . . . 2 . . Overload Shots . | . . . . . . . . . . . . . . . . . . . . . . . . . Overflow Damage 4041 | . . 17 192 139 510 188 400 . 120 41 178 . 524 260 259 34 67 73 54 276 20 35 211 443 Projectiles 15 | . . 6 . . . . . . . . . . . . . . . . . 9 . . . . Explosions 209 | . . 11 12 . . . . . 18 . 23 . . . . . . . 11 114 20 . . . Melee 3817 | . . . 180 139 510 188 400 . 102 41 155 . 524 260 259 34 67 73 43 153 . 35 211 443 Knockbacks . | . . . . . . . . . . . . . . . . . . . . . . . . . Impact . | . . . . . . . . . . . . . . . . . . . . . . . . . Kinetic . | . . . . . . . . . . . . . . . . . . . . . . . . . Secondary . | . . . . . . . . . . . . . . . . . . . . . . . . . Self-Inflicted Damage 541 | . 21 40 97 75 . 10 . . . . . . . . . 107 . . 63 63 65 . . . Shots 20 | . 1 2 3 3 . 1 . . . . . . . . . 3 . . 2 1 4 . . . Rammed 20 | . 1 . . . . . . . . . . . . 1 . . . . . 18 . . . . Targets Rammed 87 | . 1 . . . . . . . . . . . . 1 . . . . 2 83 . . . . Kicked 67 | . . . . . . . . . . . . . . . . . . . 2 65 . . . . Crushed . | . . . . . . . . . . . . . . . . . . . . . . . . . Highest Temperature 570 | 90 156 570 438 259 . . 265 . 256 . 256 234 77 . 182 233 . . 14 455 229 115 . 295 Average Temperature 98 | 35 45 132 106 107 . . 100 . 104 . 110 132 41 . 92 83 . . 8 196 66 65 . 89 Received Heat Transfer 2726 | . 51 297 771 261 102 . 156 . . . 236 . . 51 57 144 129 . 141 195 117 . . 18 Effects 11 | . . 8 1 . . . . . . . . . . . . . . . . 2 . . . . Shutdowns 5 | . . 3 1 . . . . . . . . . . . . . . . . 1 . . . . Energy Bleed 1 | . . . . . . . . . . . . . . . . . . . . 1 . . . . Interference 5 | . . 5 . . . . . . . . . . . . . . . . . . . . . . Siege Activations . | . . . . . . . . . . . . . . . . . . . . . . . . . Martial Activations . | . . . . . . . . . . . . . . . . . . . . . . . . . Shielding Activations . | . . . . . . . . . . . . . . . . . . . . . . . . . Robots Disrupted . | . . . . . . . . . . . . . . . . . . . . . . . . . Combat Hostiles . | . . . . . . . . . . . . . . . . . . . . . . . . . Robots Corrupted 5 | . 1 . 1 . . . . . . . . . . . . . . . . 1 2 . . . Combat Hostiles 5 | . 1 . 1 . . . . . . . . . . . . . . . . 1 2 . . . Parts Fried 16 | . 1 . 3 . . . . . . . . . . . . . . . . 4 7 . . 1 Impact Corruptions 1 | . 1 . . . . . . . . . . . . . . . . . . . . . . . Robots Melted 1 | . . 1 . . . . . . . . . . . . . . . . . . . . . . Combat Hostiles 1 | . . 1 . . . . . . . . . . . . . . . . . . . . . . Parts Melted 10 | . . 5 2 . 1 . 1 . . . . . . . . . . . . 1 . . . . Heat Transferred 6738 | 250 1684 1643 2189 . . . . . . . . . . . . . . . . 822 100 . . 50 Parts Sabotaged . | . . . . . . . . . . . . . . . . . . . . . . . . . Parts Stolen . | . . . . . . . . . . . . . . . . . . . . . . . . . Parts Stripped . | . . . . . . . . . . . . . . . . . . . . . . . . . Power Chain Reactions 9 | . . . 6 . . . . . . . . . . . . . . . . 1 1 . . 1 Alert | -11 -10 -10 -9 -8 -7 -7 -7 -7 -6 -6 -6 -6 -6 -6 -5 -5 -5 -5 -4 -4 -3 -3 -2 -1 ------- Run | Yrd Mat Min Mat Mat Fac Low Low Dat Pro Fac Ext Cet Arc Hub Fac Upp Upp Zhi Pro Fac Res Tes Res Acc Maximum Alert Level 4 | . . . 2 2 . . . . . 3 3 2 2 4 2 . . . . 4 4 2 1 2 Low Security (%) 33 | 100 100 100 47 . 100 . . . . . . . . 12 . . . . . . . . 13 15 Level 1 30 | . . . 24 99 . . . . . . 59 . 86 20 . . . . . . . . 86 70 Level 2 25 | . . . 28 . . . . . . 8 23 100 13 40 99 . . . . 9 63 100 . 14 Level 3 10 | . . . . . . . . . . 91 16 . . 17 . . . . . 81 34 . . . Level 4 . | . . . . . . . . . . . . . . 8 . . . . . 9 1 . . . Level 5 . | . . . . . . . . . . . . . . . . . . . . . . . . . High Security . | . . . . . . . . . . . . . . . . . . . . . . . . . Max Security . | . . . . . . . . . . . . . . . . . . . . . . . . . Peak Influence 1288 | 5 185 150 690 404 140 . . . . 900 823 633 414 1186 561 . . . . 1288 1105 613 331 525 Initial 900 | . . 42 16 290 140 . . . . 900 319 448 229 74 561 . . . . 900 664 572 312 120 Average 349 | . 114 59 246 327 38 . . . . 815 455 553 324 554 453 . . . . 873 754 584 261 297 Influence Increases 12989 | 15 522 482 1382 660 332 70 95 . 110 942 1453 315 295 1393 323 170 50 10 205 1886 1018 275 205 781 Destroy 0b10 Robot/C 4660 | . 280 300 760 340 140 60 80 . 80 20 760 140 80 440 180 160 40 . 180 240 160 80 . 140 Destroy 0b10 Robot/NC 760 | 15 40 15 140 40 60 . 5 . 20 10 55 5 45 50 40 . . 10 5 50 45 10 45 55 Destroy Leader 882 | . 70 60 202 76 64 10 10 . 10 12 74 10 . 98 42 10 10 . 20 48 12 10 6 28 Allied During Kill 1261 | . . . . . . . . . . . 441 125 125 562 . . . . . . . 8 . . Successful Hack 130 | . 27 . 42 16 . . . . . . . 7 . . 2 . . . . . . 14 7 15 Disable Machine 795 | . . 30 30 45 15 . . . . . 15 . 45 45 15 . . . . 360 45 75 30 45 Anti-Garrison Action 150 | . . . . . . . . . . . . . . 150 . . . . . . . . . . Destroy Structure 706 | . 30 77 43 38 8 . . . . . 33 28 . 33 14 . . . . 138 96 18 27 123 Advance Influence 1800 | . . . . . . . . . . 900 . . . . . . . . . 900 . . . . Partial Spotted 255 | . . . . . 15 . . . . . . . . . . . . . . . 75 15 30 120 Lose Combat Pursuer 1590 | . 75 . 165 105 30 . . . . . 75 . . 15 30 . . . . 150 585 45 60 255 Influence Decreases 12466 | 15 413 547 738 1040 593 117 95 . 110 290 1305 542 654 460 1064 576 50 10 205 620 1266 736 561 459 Entered New Map 3960 | . . 67 28 398 168 19 . . . . 333 352 344 140 586 151 . . . . 602 446 245 81 Time Decay 6644 | 15 413 450 598 542 385 98 95 . 110 190 612 150 310 180 458 375 50 10 175 350 374 180 206 318 Search Patrol Dispatched 400 | . . . . . . . . . . 100 . . . . . . . . . 100 100 . 100 . Lost Part 912 | . . 30 112 100 40 . . . . . 10 . . 20 20 50 . . 30 170 190 70 10 60 Lost Ally 400 | . . . . . . . . . . . 200 40 . 120 . . . . . . . 40 . . Purge Threat 150 | . . . . . . . . . . . 150 . . . . . . . . . . . . . Squads Dispatched 61 | . 3 1 7 2 4 . . . . 1 4 1 . 11 4 . . . . 6 9 3 1 4 Investigation 9 | . 1 . 3 . . . . . . . 1 1 . 1 1 . . . . . 1 . . . Extermination 16 | . . . . . 2 . . . . 1 . . . 1 3 . . . . 1 3 1 1 3 Reinforcement 26 | . 2 . 3 2 1 . . . . . 2 . . 5 . . . . . 3 5 2 . 1 Assault 9 | . . 1 1 . 1 . . . . . 1 . . 3 . . . . . 2 . . . . Garrison 1 | . . . . . . . . . . . . . . 1 . . . . . . . . . . Intercept . | . . . . . . . . . . . . . . . . . . . . . . . . . Searches Triggered 4 | . . . . . . . . . . 1 . . . . . . . . . 1 1 . 1 . Data Miner Redirects 4 | . . . . . . . . . . . 1 1 . . . . . . . 2 . . . . Construction Impeded 1 | . . . 1 . . . . . . . . . . . . . . . . . . . . . Haulers Reinforced 5 | . . . . . . . . . . . . . . 2 . . . . . 2 1 . . . Active Scanning Responses . | . . . . . . . . . . . . . . . . . . . . . . . . . Cargo Convoy Interrupts 1 | . . . . . . . . . . . . . . . 1 . . . . . . . . . Stealth | -11 -10 -10 -9 -8 -7 -7 -7 -7 -6 -6 -6 -6 -6 -6 -5 -5 -5 -5 -4 -4 -3 -3 -2 -1 --------- Run | Yrd Mat Min Mat Mat Fac Low Low Dat Pro Fac Ext Cet Arc Hub Fac Upp Upp Zhi Pro Fac Res Tes Res Acc Distress Signals 30 | . 1 . 1 2 1 . . . . . 3 1 . 4 2 . . . . 1 7 2 2 3 Communications Jammed 1 | . . . . . . . . . 1 . . . . . . . . . . . . . . . Distress Signals . | . . . . . . . . . . . . . . . . . . . . . . . . . Times Spotted 438 | . 30 14 61 29 15 2 6 . 7 2 43 6 5 23 14 9 2 . 19 27 63 16 11 34 Peak Tracking Total 13 | . 5 4 5 5 5 2 3 . 3 1 6 5 1 5 3 7 1 . 9 6 13 10 5 8 Tactical Retreats 55 | . 3 . 8 7 1 . . . . . 3 . . 1 2 . . . . 6 13 1 3 7 Traps | -11 -10 -10 -9 -8 -7 -7 -7 -7 -6 -6 -6 -6 -6 -6 -5 -5 -5 -5 -4 -4 -3 -3 -2 -1 ------- Run | Yrd Mat Min Mat Mat Fac Low Low Dat Pro Fac Ext Cet Arc Hub Fac Upp Upp Zhi Pro Fac Res Tes Res Acc Traps Triggered 13 | . 3 . 3 . . . . . . . 2 . . 1 1 . . . . . 2 1 . . Indirectly . | . . . . . . . . . . . . . . . . . . . . . . . . . Trap Hack Attempts . | . . . . . . . . . . . . . . . . . . . . . . . . . Triggered . | . . . . . . . . . . . . . . . . . . . . . . . . . Disarmed . | . . . . . . . . . . . . . . . . . . . . . . . . . Reprogrammed . | . . . . . . . . . . . . . . . . . . . . . . . . . Reused . | . . . . . . . . . . . . . . . . . . . . . . . . . Traps Extracted . | . . . . . . . . . . . . . . . . . . . . . . . . . Installed . | . . . . . . . . . . . . . . . . . . . . . . . . . Triggered . | . . . . . . . . . . . . . . . . . . . . . . . . . Machines | -11 -10 -10 -9 -8 -7 -7 -7 -7 -6 -6 -6 -6 -6 -6 -5 -5 -5 -5 -4 -4 -3 -3 -2 -1 ---------- Run | Yrd Mat Min Mat Mat Fac Low Low Dat Pro Fac Ext Cet Arc Hub Fac Upp Upp Zhi Pro Fac Res Tes Res Acc Machines Disabled 56 | . . 2 2 3 1 . . . . . 3 . 3 4 1 . . . . 24 3 5 2 3 Max in Single Turn 14 | . . 1 1 2 1 . . . . . 1 . . . 1 . . . . 14 2 1 1 1 Garrison Access 4 | . . . . . . . . . . . . . . 1 1 . . . . . . . . 2 Machines Repaired . | . . . . . . . . . . . . . . . . . . . . . . . . . Machines Dismantled . | . . . . . . . . . . . . . . . . . . . . . . . . . Machines Sabotaged . | . . . . . . . . . . . . . . . . . . . . . . . . . Overloaded Fab Kills . | . . . . . . . . . . . . . . . . . . . . . . . . . Hacking | -11 -10 -10 -9 -8 -7 -7 -7 -7 -6 -6 -6 -6 -6 -6 -5 -5 -5 -5 -4 -4 -3 -3 -2 -1 --------- Run | Yrd Mat Min Mat Mat Fac Low Low Dat Pro Fac Ext Cet Arc Hub Fac Upp Upp Zhi Pro Fac Res Tes Res Acc Machines Accessed 74 | . 7 . 10 4 3 . . 3 . 1 5 1 . 1 5 . 1 4 . 4 5 7 3 10 Terminals 48 | . 6 . 9 3 1 . . . . 1 5 1 . 1 1 . . . . 3 3 6 3 5 Fabricators 2 | . . . . . . . . . . . . . . . 1 . . . . . . 1 . . Repair Stations 1 | . . . . . . . . . . . . . . . 1 . . . . . . . . . Recycling Units 7 | . 1 . 1 1 . . . . . . . . . . . . . . . 1 2 . . 1 Scanalyzers 2 | . . . . . 1 . . . . . . . . . 1 . . . . . . . . . Garrison Access 6 | . . . . . 1 . . . . . . . . . 1 . . . . . . . . 4 Total Hacks 195 | . 16 . 34 12 5 . . 25 . 1 12 3 . 1 12 . 1 17 . 6 12 16 5 17 Successful 102 | . 11 . 16 6 . . . 25 . . 2 1 . . 8 . 1 17 . 1 2 5 2 5 Failed 93 | . 5 . 18 6 5 . . . . 1 10 2 . 1 4 . . . . 5 10 11 3 12 Catastrophic 19 | . . . 2 . 1 . . . . 1 2 . . 1 . . . . . 2 2 3 2 3 Database Lockouts . | . . . . . . . . . . . . . . . . . . . . . . . . . Manual 90 | . 15 . 28 7 . . . . . . 9 1 . 1 2 . . . . 2 4 11 5 5 Terminals 112 | . 15 . 32 7 1 . . . . 1 12 3 . 1 1 . . . . 3 8 14 5 9 Fabricators 5 | . . . . . . . . . . . . . . . 3 . . . . . . 2 . . Repair Stations 3 | . . . . . . . . . . . . . . . 3 . . . . . . . . . Recycling Units 16 | . 1 . 2 5 . . . . . . . . . . . . . . . 3 4 . . 1 Scanalyzers 6 | . . . . . 3 . . . . . . . . . 3 . . . . . . . . . Garrison Access 10 | . . . . . 1 . . . . . . . . . 2 . . . . . . . . 7 Terminal Hacks 58 | . 2 . 3 . . . . 25 . . 2 1 . . 1 . 1 17 . . 1 2 1 2 Record 11 | . . . . . . . . 6 . . . . . . . . . 5 . . . . . . Part Schematic 15 | . . . . . . . . 11 . . . . . . . . . 4 . . . . . . Robot Schematic 5 | . . . . . . . . 5 . . . . . . . . . . . . . . . . Robot Analysis 8 | . 2 . 2 . . . . . . . . . . . . . . 4 . . . . . . Prototype ID Bank 7 | . . . . . . . . 3 . . . . . . . . . 4 . . . . . . Open Door 3 | . . . . . . . . . . . . 1 . . . . 1 . . . . . . 1 Level Access Points 2 | . . . . . . . . . . . . . . . . . . . . . . . 1 1 Branch Access Points 1 | . . . . . . . . . . . . . . . . . . . . . 1 . . . Alert Level 1 | . . . . . . . . . . . 1 . . . . . . . . . . . . . Unreport Threat 1 | . . . . . . . . . . . 1 . . . . . . . . . . . . . Locate Traps 1 | . . . . . . . . . . . . . . . . . . . . . . 1 . . Recall Investigation 1 | . . . 1 . . . . . . . . . . . . . . . . . . . . . Hauler Manifests 1 | . . . . . . . . . . . . . . . 1 . . . . . . . . . Zone Layout 1 | . . . . . . . . . . . . . . . . . . . . . . 1 . . Fabricator Hacks 3 | . . . . . . . . . . . . . . . 2 . . . . . . 1 . . Network Status 2 | . . . . . . . . . . . . . . . 1 . . . . . . 1 . . Load Schematic 1 | . . . . . . . . . . . . . . . 1 . . . . . . . . . Repair Station Hacks 2 | . . . . . . . . . . . . . . . 2 . . . . . . . . . Scan Component 1 | . . . . . . . . . . . . . . . 1 . . . . . . . . . Repair 1 | . . . . . . . . . . . . . . . 1 . . . . . . . . . Recycling Unit Hacks 4 | . 1 . . 1 . . . . . . . . . . . . . . . 1 1 . . . Retrieve Components 4 | . 1 . . 1 . . . . . . . . . . . . . . . 1 1 . . . Scanalyzer 1 | . . . . . . . . . . . . . . . 1 . . . . . . . . . Insert Component 1 | . . . . . . . . . . . . . . . 1 . . . . . . . . . Garrison Access Hacks 3 | . . . . . . . . . . . . . . . 1 . . . . . . . . 2 Seal Access 3 | . . . . . . . . . . . . . . . 1 . . . . . . . . 2 Unauthorized Hacks 31 | . 8 . 13 5 . . . . . . . . . . 1 . . . . . . 2 1 1 Terminals 29 | . 8 . 13 5 . . . . . . . . . . . . . . . . . 1 1 1 Track 2 | . . . . . . . . . . . . . . . . . . . . . . 1 1 . Botnet 16 | . 4 . 8 3 . . . . . . . . . . . . . . . . . . . 1 Skim 11 | . 4 . 5 2 . . . . . . . . . . . . . . . . . . . . Fabricators 2 | . . . . . . . . . . . . . . . 1 . . . . . . 1 . . Liberate 1 | . . . . . . . . . . . . . . . . . . . . . . 1 . . Recompile 1 | . . . . . . . . . . . . . . . 1 . . . . . . . . . Repair Stations . | . . . . . . . . . . . . . . . . . . . . . . . . . Recycling Units . | . . . . . . . . . . . . . . . . . . . . . . . . . Scanalyzers . | . . . . . . . . . . . . . . . . . . . . . . . . . Garrison Access . | . . . . . . . . . . . . . . . . . . . . . . . . . Data Cores Recovered 4 | . . . 1 . . . . . . . 1 . . . . . . . . . . 1 1 . Used 1 | . . . . . . . . . . . . . . . . . . . . . . 1 . . Hacking Detections 56 | . 5 . 9 4 3 . . . . 1 5 2 . 1 2 . . . . 4 4 5 2 9 Full Trace Events 5 | . 1 . 2 . . . . . . . . 1 . . . . . . . . 1 . . . Feedback Events . | . . . . . . . . . . . . . . . . . . . . . . . . . Feedback Blocked . | . . . . . . . . . . . . . . . . . . . . . . . . . Robot Schematics Acquired 5 | . . . . . . . . 5 . . . . . . . . . . . . . . . . Robots Built . | . . . . . . . . . . . . . . . . . . . . . . . . . Authchips . | . . . . . . . . . . . . . . . . . . . . . . . . . Time . | . . . . . . . . . . . . . . . . . . . . . . . . . Total Robot Build Rating . | . . . . . . . . . . . . . . . . . . . . . . . . . Part Schematics Acquired 15 | . . . . . . . . 11 . . . . . . . . . 4 . . . . . . Parts Built . | . . . . . . . . . . . . . . . . . . . . . . . . . Authchips . | . . . . . . . . . . . . . . . . . . . . . . . . . Time . | . . . . . . . . . . . . . . . . . . . . . . . . . Total Part Build Rating . | . . . . . . . . . . . . . . . . . . . . . . . . . Part Studies Acquired . | . . . . . . . . . . . . . . . . . . . . . . . . . Parts Repaired 1 | . . . . . . . . . . . . . . . 1 . . . . . . . . . Time 13 | . . . . . . . . . . . . . . . 13 . . . . . . . . . Parts Recycled . | . . . . . . . . . . . . . . . . . . . . . . . . . Recycled Matter . | . . . . . . . . . . . . . . . . . . . . . . . . . Retrieved Matter . | . . . . . . . . . . . . . . . . . . . . . . . . . Retrieved Components 15 | . 4 . . 1 . . . . . . . . . . . . . . . . 10 . . . Parts Scanalyzed . | . . . . . . . . . . . . . . . . . . . . . . . . . Part Schematics Acquired . | . . . . . . . . . . . . . . . . . . . . . . . . . Parts Damaged . | . . . . . . . . . . . . . . . . . . . . . . . . . Bothacking | -11 -10 -10 -9 -8 -7 -7 -7 -7 -6 -6 -6 -6 -6 -6 -5 -5 -5 -5 -4 -4 -3 -3 -2 -1 ------------ Run | Yrd Mat Min Mat Mat Fac Low Low Dat Pro Fac Ext Cet Arc Hub Fac Upp Upp Zhi Pro Fac Res Tes Res Acc Used RIF Installer . | . . . . . . . . . . . . . . . . . . . . . . . . . Robots Hacked 1 | . . . . . . . . . . . 1 . . . . . . . . . . . . . Non-combat . | . . . . . . . . . . . . . . . . . . . . . . . . . Combat 1 | . . . . . . . . . . . 1 . . . . . . . . . . . . . Robot Hacks Applied 1 | . . . . . . . . . . . 1 . . . . . . . . . . . . . parse_system 1 | . . . . . . . . . . . 1 . . . . . . . . . . . . . Relay Couplers Released 2 | . . . . . . . . . . . . . . 2 . . . . . . . . . . Machine Destruction 2 | . . . . . . . . . . . . . . 2 . . . . . . . . . . Fabnet Peak Effective % . | . . . . . . . . . . . . . . . . . . . . . . . . . Robots Rewired 13 | . . . . . . . . . . . 11 . . . . 2 . . . . . . . . Allies Hacked 1 | . . . . . . . . . . . . . . 1 . . . . . . . . . . Hacks Repelled . | . . . . . . . . . . . . . . . . . . . . . . . . . Allies | -11 -10 -10 -9 -8 -7 -7 -7 -7 -6 -6 -6 -6 -6 -6 -5 -5 -5 -5 -4 -4 -3 -3 -2 -1 -------- Run | Yrd Mat Min Mat Mat Fac Low Low Dat Pro Fac Ext Cet Arc Hub Fac Upp Upp Zhi Pro Fac Res Tes Res Acc Total Allies 30 | . . 1 . . . . . . . . 19 5 . . . 2 . . . . . 3 . . Largest Group 15 | . . 1 . . . . . . . . 15 11 11 10 . 2 . . . . . 3 . . Highest-Rated Group 772 | . . 31 . . . . . . . . 592 772 772 651 . 60 . . . . . 144 . . Highest-Rated Ally 159 | . . 31 . . . . . . . . 159 153 121 96 . 30 . . . . . 48 . . Total Orders 10 | . . . . . . . . . . . 6 . . 4 . . . . . . . . . . STAY 4 | . . . . . . . . . . . 2 . . 2 . . . . . . . . . . FOLLOW 4 | . . . . . . . . . . . 3 . . 1 . . . . . . . . . . AID 2 | . . . . . . . . . . . 1 . . 1 . . . . . . . . . . Ally Attacks 358 | . . . . . . . . . . . 184 41 16 107 . . . . . . . 10 . . Total Damage 8299 | . . . . . . . . . . . 3370 794 401 3280 . . . . . . . 454 . . Kills 65 | . . . . . . . . . . . 29 7 4 23 . . . . . . . 2 . . Allies Corrupted . | . . . . . . . . . . . . . . . . . . . . . . . . . Allies Melted 1 | . . . . . . . . . . . 1 . . . . . . . . . . . . . Intel | -11 -10 -10 -9 -8 -7 -7 -7 -7 -6 -6 -6 -6 -6 -6 -5 -5 -5 -5 -4 -4 -3 -3 -2 -1 ------- Run | Yrd Mat Min Mat Mat Fac Low Low Dat Pro Fac Ext Cet Arc Hub Fac Upp Upp Zhi Pro Fac Res Tes Res Acc Active Infowar (turns) 20948 | 35 1267 1031 2480 1557 1254 1222 1858 127 1520 383 2015 279 681 297 1144 777 . . . 654 861 353 437 716 Optics 4335 | . . . . 1131 345 . . . . . . . . . . . . . . 521 861 353 408 716 Sensors 14094 | . . . 258 1480 909 1222 1858 127 1520 375 2015 279 681 297 1144 777 . . . . . . 437 715 Terrain 433 | . . . . . . . . . . . . . . . . . . . . . 351 82 . . Traps 133 | . . . . . . . . . . . . . . . . . . . . 133 . . . . Seismic 4708 | 35 1267 1031 2222 . . . . . . . . . . . . . . . . . 2 151 . . Machine Analysis 1114 | . . . . . . . . . . . . . . . . . . . . 152 . . 246 716 Jamming 2007 | . . . . . . . . . 1183 383 58 . . . . . . . . 247 38 98 . . Robot Analysis Total 8 | . 2 . 2 . . . . . . . . . . . . . . 4 . . . . . . Derelict Logs Recovered 9 | . . 1 . . . 2 1 . 1 . . . . . . 2 1 . 1 . . . . . Drone Launches . | . . . . . . . . . . . . . . . . . . . . . . . . . Drone Recoveries . | . . . . . . . . . . . . . . . . . . . . . . . . . Exploration | -11 -10 -10 -9 -8 -7 -7 -7 -7 -6 -6 -6 -6 -6 -6 -5 -5 -5 -5 -4 -4 -3 -3 -2 -1 ------------- Run | Yrd Mat Min Mat Mat Fac Low Low Dat Pro Fac Ext Cet Arc Hub Fac Upp Upp Zhi Pro Fac Res Tes Res Acc Turns Passed 24805 | 155 1267 1224 2707 1557 1259 1222 1862 127 1520 383 2015 311 681 368 1144 956 1567 227 1085 790 861 363 438 716 Spaces Moved 15418 | 76 577 591 1268 743 746 741 939 79 910 211 941 105 287 178 574 527 489 168 493 798 1311 478 590 1598 Core 301 | 7 . . . 1 28 . . . . . . . . . . . 214 . . 50 . 1 . . Treads 9351 | 69 577 591 1267 742 374 741 939 79 910 211 941 105 287 178 574 527 213 . . 2 24 . . . Legs 680 | . . . . . . . . . . . . . . . . . . 80 493 107 . . . . Wheels 528 | . . . . . 344 . . . . . . . . . . . 62 88 . 34 . . . . Hover 116 | . . . 1 . . . . . . . . . . . . . . . . . . 114 1 . Flight 4442 | . . . . . . . . . . . . . . . . . . . . 605 1287 363 589 1598 Fastest Speed 14 | 50 160 160 160 162 80 160 160 160 160 160 162 162 162 162 162 165 115 115 120 30 15 34 32 14 Average Speed 123 | 151 160 160 165 163 137 160 160 160 160 160 162 162 162 162 163 165 269 117 120 59 36 51 34 19 Slowest Speed 950 | 160 160 240 330 450 450 160 160 160 160 162 162 162 163 162 165 166 950 190 120 300 175 200 120 105 Overloaded Moves 96 | . . . . . . . . . . . . . . . . . . . . . 96 . . . Propulsion Burnouts 2 | . . . . . . . . . . . . . . . . . . . . . 2 . . . Robots Hopped 33 | . . . . . . . . . . . . . . . . . . . . 2 27 1 2 1 Potential Cave-ins . | . . . . . . . . . . . . . . . . . . . . . . . . . Cave-ins Triggered 1 | . . . . . . . . . . . . . . . . . . . . . . . . 1 Teleports 1 | . . . . . . . . . . . . . . . . . . . . 1 . . . . Exploration Rate (%) 57 | 3 94 99 91 35 24 91 96 69 94 9 85 63 83 30 19 75 67 60 68 22 37 52 15 49 Regions Visited 24 Branch Regions 14 Pre-discovered Areas 5 | . . . . . . 1 . 1 . . . . . . . . . 3 . . . . . . Known Exits Taken 21 | . . . 1 1 1 1 1 1 1 1 1 1 1 1 1 1 1 1 1 1 1 1 1 . Unknown Exits Taken 3 | 1 1 1 . . . . . . . . . . . . . . . . . . . . . . Scrap Searched 17 | . . 3 . . . 2 3 . 5 . . . . . . 2 1 . 1 . . . . . Spaces Dug 132 | . 8 . . 11 8 . 1 . . . . . . . 7 17 . . 4 1 24 8 9 34 Terrain Destroyed 718 | . 29 105 37 35 8 47 1 . 75 . 12 54 . . 7 71 . . 55 76 48 9 9 40 Melee 94 | . . . . . 8 . 1 . . . . . . . 7 . . . 4 1 24 6 9 34 Projectile 7 | . . . . . . . . . . . . . . . . . . . . 7 . . . . AOE 614 | . 29 105 37 35 . 47 . . 75 . 12 54 . . . 71 . . 51 68 24 . . 6 Terrain Rammed . | . . . . . . . . . . . . . . . . . . . . . . . . . Walls Destroyed . | . . . . . . . . . . . . . . . . . . . . . . . . . Machines Disabled . | . . . . . . . . . . . . . . . . . . . . . . . . . Actions | -11 -10 -10 -9 -8 -7 -7 -7 -7 -6 -6 -6 -6 -6 -6 -5 -5 -5 -5 -4 -4 -3 -3 -2 -1 --------- Run | Yrd Mat Min Mat Mat Fac Low Low Dat Pro Fac Ext Cet Arc Hub Fac Upp Upp Zhi Pro Fac Res Tes Res Acc Total 19699 | 95 817 784 1603 943 897 757 1246 79 948 250 1361 231 486 233 716 575 717 192 953 1012 1595 561 770 1878 Wait 2573 | . 166 123 99 88 41 2 264 . 19 8 270 101 171 27 72 13 186 . 422 30 147 32 126 166 Move 15333 | 75 576 590 1267 742 745 740 938 78 909 210 940 104 286 178 573 526 488 167 492 793 1261 475 585 1595 Hop 28 | . . . . . . . . . . . . . . . . . . . . 2 22 1 2 1 Pick Up 141 | 4 9 6 17 6 14 . 3 . . 6 10 . 6 2 9 2 4 3 . 7 20 3 4 6 Fast Attach 197 | 7 . 2 25 7 21 . 4 . . 6 4 4 5 4 7 3 5 8 2 25 22 9 11 16 Attach 95 | . . 2 9 5 3 . 1 . . 2 4 3 . . 7 4 8 1 1 13 17 7 4 4 Detach 41 | . . . . 1 . . . . . . 1 . . . . . 3 1 . 10 15 6 2 2 Swap 76 | . 8 14 11 6 2 3 2 1 6 2 6 2 . 3 3 1 2 . 1 . 3 . . . Drop 189 | . 3 2 29 8 25 . 8 . . 12 12 7 7 4 7 . 5 7 2 10 24 3 3 11 Fire 273 | 9 54 45 84 4 . 4 . . 5 . 2 4 . . . 5 . . 6 26 9 12 . 4 Melee 574 | . . . 62 76 46 8 26 . 9 4 37 6 11 15 38 19 16 5 25 13 39 13 33 73 Ram 18 | . . . . . . . . . . . . . . . . . . . . 18 . . . . Kick 67 | . . . . . . . . . . . . . . . . . . . 2 65 . . . . Crush 1 | . 1 . . . . . . . . . . . . . . . . . . . . . . . Escape Stasis 16 | . . . . . . . . . . . . . . . . . . . . . 16 . . . Rewire 77 | . . . . . . . . . . . 75 . . . . 2 . . . . . . . . Trap . | . . . . . . . . . . . . . . . . . . . . . . . . . Miscellaneous . | . . . . . . . . . . . . . . . . . . . . . . . . . Route ------- -11/Scrapyard -10/Materials (discovered 4 exits: *Mat x3 / [*Min]) -10/Mines (discovered 3 exits: *Mat x2 / [*Sub]) -9/Materials (discovered 4 exits: *Mat x3 / [*Min]) -8/Materials (discovered 2 exits: *Fac / Sto) -7/Factory -7/Lower Caves -7/Lower Caves (discovered 2 exits: *Fac / *Dat) -7/Data Miner -6/Proximity Caves -6/Factory -6/Extension (discovered 2 exits: *Fac / *Cet) -6/Cetus -6/Archives (discovered 3 exits: *Fac / *Hub x2) -6/Hub_04(d) -5/Factory -5/Upper Caves -5/Upper Caves (discovered 2 exits: *Fac / *Zhi) -5/Zhirov -4/Proximity Caves -4/Factory (discovered 2 exits: *Res / Arm) -3/Research (discovered 2 exits: *Tes x2) -3/Testing -2/Research (discovered 3 exits: *Acc x3) -1/Access To Epsilon Eridani History --------- Turn | Location | Event 9 | -11/Scrapyard | Discovered new exit (range 15) 156 | -11/Scrapyard | Entered Materials 307 | -10/Materials | Build established: Mutant 339 | -10/Materials | Discovered new exit (range 15) 473 | -10/Materials | Discovered new exit (range 6) 588 | -10/Materials | Discovered new exit (range 7) 1156 | -10/Materials | Discovered new exit (range 16) 1423 | -10/Materials | Entered Mines 1439 | -10/Mines | Met a Derelict bent on vengeance 1511 | -10/Mines | Met a Derelict testing a Signal Generator 1516 | -10/Mines | Found Signal Generator 1891 | -10/Mines | A weapon hastily lodged in a ceiling crevice suddenly fell to the ground 1944 | -10/Mines | Core integrity fell below 50% 1975 | -10/Mines | Build established: Scavenger-Mutant 2054 | -10/Mines | Discovered new exit (range 10) 2073 | -10/Mines | Discovered new exit (range 9) 2532 | -10/Mines | Discovered new exit (range 13) 2647 | -10/Mines | Entered Materials 2647 | -9/Materials | Evolved 2 slots: Propulsion x1, Utility x1 2786 | -9/Materials | Lost 7 parts (1p2n2u2w) 2950 | -9/Materials | Discovered new exit (range 10) 3464 | -9/Materials | Learned Storage garrison access intel 3510 | -9/Materials | Discovered new exit (range 15) 3519 | -9/Materials | Identified exit to Materials 3565 | -9/Materials | Learned Recycling recycling unit intel 3599 | -9/Materials | Learned 2 Storage zone layouts 3637 | -9/Materials | Build established: Mutant 3653 | -9/Materials | Loaded intel: 62 machine locations 4070 | -9/Materials | Lost 3 parts (1p1u1w) 4076 | -9/Materials | Discovered new exit (range 15) 4947 | -9/Materials | Core integrity fell below 50% 5047 | -9/Materials | First assault squad dispatched 5354 | -9/Materials | Entered another Materials area 5354 | -8/Materials | Evolved 2 slots: Propulsion x1, Utility x1 5355 | -8/Materials | Identified exit to Storage 6105 | -8/Materials | Build established: Assassin 6851 | -8/Materials | Discovered new exit (range 12) 6867 | -8/Materials | Identified exit to Factory 6882 | -8/Materials | Core integrity fell below 50% 6911 | -8/Materials | Entered Factory 6911 | -7/Factory | Evolved 2 slots: Utility x1, Weapon x1 6942 | -7/Factory | Lost 7 parts (1p4n2u) 7410 | -7/Factory | Build established: Gladiator 8147 | -7/Factory | Discovered new exit (range 8) 8167 | -7/Factory | Identified exit to Lower Caves 8170 | -7/Factory | Entered Lower Caves 8171 | -7/Lower Caves | Encountered a Warlord checkpoint 8440 | -7/Lower Caves | Learned Factory emergency access door positions 9347 | -7/Lower Caves | Discovered new exit (range 5) 9389 | -7/Lower Caves | Identified exit to Lower Caves 9392 | -7/Lower Caves | Entered another Lower Caves area 9422 | -7/Lower Caves | Discovered new exit (range 10) 9455 | -7/Lower Caves | Identified exit to Factory 10102 | -7/Lower Caves | Learned Factory security intel 10248 | -7/Lower Caves | Attracted the attention of an 0b10 checkpoint 10889 | -7/Lower Caves | Attacked by a faux Warlord 11094 | -7/Lower Caves | Discovered new exit (range 7) 11251 | -7/Lower Caves | Identified exit to Data Miner 11254 | -7/Lower Caves | Entered Data Miner 11254 | -7/Data Miner | Discovered new exit (range 6) 11285 | -7/Data Miner | Met Data Miner 11317 | -7/Data Miner | Learned location of Section 7 (-2) 11317 | -7/Data Miner | Acquired the access code to Warlord's prototype stash 11338 | -7/Data Miner | Received God Mode back door access code from Data Miner 11378 | -7/Data Miner | Identified exit to Proximity Caves 11381 | -7/Data Miner | Entered Proximity Caves 11681 | -6/Proximity Caves | Spotter reported a threat 11693 | -6/Proximity Caves | Spotter reported a threat 11746 | -6/Proximity Caves | Spotter reported a threat 11746 | -6/Proximity Caves | Spotter reported a threat 11799 | -6/Proximity Caves | Spotter reported a threat 11977 | -6/Proximity Caves | Spotter reported a threat 12617 | -6/Proximity Caves | Learned Factory stockpile data 12657 | -6/Proximity Caves | Discovered exit to Factory (range 8) 12901 | -6/Proximity Caves | Entered Factory 12901 | -6/Factory | Evolved 2 slots: Utility x2 13251 | -6/Factory | Search patrols dispatched 13260 | -6/Factory | Discovered new exit (range 16) 13282 | -6/Factory | Identified exit to Extension 13284 | -6/Factory | Entered Extension 13677 | -6/Extension | Rescued a captive Derelict 13677 | -6/Extension | Rescued a captive Derelict 13813 | -6/Extension | Rescued A7 14164 | -6/Extension | Warlord forces began an assault 14243 | -6/Extension | Spotted B-75 Beast 14273 | -6/Extension | Allies destroyed B-75 Beast 14281 | -6/Extension | Lost 3 allies 14322 | -6/Extension | Rescued a captive Derelict 14323 | -6/Extension | Rescued a captive Derelict 14359 | -6/Extension | Rescued a captive Derelict 14359 | -6/Extension | Rescued a captive Derelict 14603 | -6/Extension | Rescued a captive Derelict 14750 | -6/Extension | Build established: Commander-Gladiator 15031 | -6/Extension | Discovered new exit (range 10) 15034 | -6/Extension | First assault squad dispatched 15034 | -6/Extension | Discovered new exit (range 6) 15058 | -6/Extension | Incoming assault squad redirected 15137 | -6/Extension | Lost 7 allies 15212 | -6/Extension | Identified exit to Cetus 15299 | -6/Extension | Entered Cetus 15299 | -6/Cetus | Accompanied by 8 allies (A7) 15304 | -6/Cetus | Acquired a Cetus Manufacturing Module code from A7 15324 | -6/Cetus | Spotted Cetus Guard 15325 | -6/Cetus | Spotted Cetus Guard 15337 | -6/Cetus | Spotted Cetus Guard 15337 | -6/Cetus | Allies destroyed Cetus Guard 15339 | -6/Cetus | Allies destroyed Cetus Guard 15343 | -6/Cetus | Allies destroyed Cetus Guard 15396 | -6/Cetus | Build established: Gladiator 15410 | -6/Cetus | Started Cetus Manufacturing Module 15435 | -6/Cetus | Manufactured an Enhanced Grunt 15445 | -6/Cetus | Found Prototype Protection 15445 | -6/Cetus | Identified Med. Regenerative Plating 15459 | -6/Cetus | Escorted A7 to Cetus Mainframe 15460 | -6/Cetus | Manufactured an Enhanced Grunt 15485 | -6/Cetus | Manufactured an Enhanced Grunt 15486 | -6/Cetus | Incoming investigation squad redirected 15510 | -6/Cetus | Manufactured an Enhanced Grunt 15535 | -6/Cetus | Manufactured an Enhanced Grunt 15564 | -6/Cetus | Discovered new exit (range 16) 15587 | -6/Cetus | Identified exit to Archives 15610 | -6/Cetus | Entered Archives 15610 | -6/Archives | Accompanied by 11 allies (A7) 15615 | -6/Archives | Received a hacking code to weaken MAIN.C 15676 | -6/Archives | Discovered new exit (range 15) 15714 | -6/Archives | Discovered new exit (range 15) 15759 | -6/Archives | Build established: Commander-Gladiator 16138 | -6/Archives | Discovered new exit (range 13) 16262 | -6/Archives | Identified exit to Hub_04(d) 16291 | -6/Archives | Entered Hub_04(d) 16291 | -6/Hub_04(d) | Accompanied by 10 allies 16541 | -6/Hub_04(d) | Garrison activated, responded to threat 16632 | -6/Hub_04(d) | Discovered new exit (range 15) 16641 | -6/Hub_04(d) | First assault squad dispatched 16655 | -6/Hub_04(d) | Identified exit to Factory 16659 | -6/Hub_04(d) | Entered Factory 16659 | -5/Factory | Evolved 2 slots: Utility x2 16684 | -5/Factory | Lost 3 allies 16820 | -5/Factory | Repaired Lrg. Storage Unit 16955 | -5/Factory | Build established: Scavenger-Gladiator 17748 | -5/Factory | Discovered new exit (range 7) 17755 | -5/Factory | Identified exit to Upper Caves 17778 | -5/Factory | Cargo convoy interrupted 17803 | -5/Factory | Entered Upper Caves 17812 | -5/Upper Caves | Attracted the attention of an 0b10 outpost 17867 | -5/Upper Caves | Lost 4 parts (1p1n2w) 18130 | -5/Upper Caves | Build established: Hacker-Gladiator 18506 | -5/Upper Caves | Identified exit to Upper Caves 18759 | -5/Upper Caves | Entered another Upper Caves area 18847 | -5/Upper Caves | Learned Factory emergency access door positions 18905 | -5/Upper Caves | Spotted B-75 Beast 18978 | -5/Upper Caves | Destroyed B-75 Beast 19004 | -5/Upper Caves | Lost 9 parts (5n2u2w) 19264 | -5/Upper Caves | Build established: Mutant 19540 | -5/Upper Caves | Discovered new exit (range 3) 19547 | -5/Upper Caves | Identified exit to Factory 19924 | -5/Upper Caves | Attracted the attention of an 0b10 checkpoint 20212 | -5/Upper Caves | Found DCF Scrap (15 items) 20217 | -5/Upper Caves | Discovered new exit (range 4) 20248 | -5/Upper Caves | Build established: Scavenger-Mutant 20270 | -5/Upper Caves | Identified exit to Zhirov 20326 | -5/Upper Caves | Entered Zhirov 20326 | -5/Zhirov | Discovered new exit (range 3) 20347 | -5/Zhirov | Met Zhirov 20368 | -5/Zhirov | Learned location of Quarantine (-2) 20368 | -5/Zhirov | Learned location of Testing (-3) 20368 | -5/Zhirov | Learned location of Command (-1) 20379 | -5/Zhirov | Zhirov requested help retrieving the SGEMP Prototype 20405 | -5/Zhirov | Found Alien Artifact 20405 | -5/Zhirov | Identified Integrated Reactor 20405 | -5/Zhirov | Installed Integrated Reactor, increased core energy generation (+10) 20504 | -5/Zhirov | Found Alien Artifact 20552 | -5/Zhirov | Identified exit to Proximity Caves 20553 | -5/Zhirov | Entered Proximity Caves 20639 | -4/Proximity Caves | Spotter reported a threat 20682 | -4/Proximity Caves | Spotter reported a threat 21191 | -4/Proximity Caves | Spotter reported a threat 21360 | -4/Proximity Caves | Spotter reported a threat 21413 | -4/Proximity Caves | Spotter reported a threat 21466 | -4/Proximity Caves | Spotter reported a threat 21529 | -4/Proximity Caves | Spotter reported a threat 21625 | -4/Proximity Caves | Discovered exit to Factory (range 12) 21638 | -4/Proximity Caves | Entered Factory 21638 | -4/Factory | Evolved 2 slots: Utility x2 21639 | -4/Factory | Identified exit to Armory 21826 | -4/Factory | Lost 5 parts (1p1n3u) 21888 | -4/Factory | Search patrols dispatched 21891 | -4/Factory | Identified Transdimensional Reconstructor 21891 | -4/Factory | Warped through subspace 21892 | -4/Factory | Core integrity fell below 50% 21921 | -4/Factory | Lost 4 parts (2n2u) 22037 | -4/Factory | Lost 3 parts (1p1n1w) 22097 | -4/Factory | Build established: Mutant 22128 | -4/Factory | Discovered new exit (range 10) 22318 | -4/Factory | Lost 4 parts (1p2n1u) 22388 | -4/Factory | First assault squad dispatched 22404 | -4/Factory | Incoming assault squad redirected 22414 | -4/Factory | Incoming assault squad redirected 22426 | -4/Factory | Core integrity fell below 20% 22427 | -4/Factory | Identified exit to Research 22428 | -4/Factory | Entered Research 22428 | -3/Research | Evolved 2 slots: Propulsion x1, Utility x1 22491 | -3/Research | Build established: Hacker-Mutant 22524 | -3/Research | Spotted B-86 Titan 22654 | -3/Research | Found Prototype Device 22654 | -3/Research | Identified Exp. Shield Generator 22658 | -3/Research | Found Faulty Exp. Shield Generator 22882 | -3/Research | Lost 3 parts (2u1w) 23045 | -3/Research | System corruption reached 10% 23057 | -3/Research | Found Gamma Bomb Array 23119 | -3/Research | Lost 9 parts (6n1u2w) 23135 | -3/Research | Identified exit to Testing 23151 | -3/Research | Found Gamma Bomb Array 23166 | -3/Research | Core integrity fell below 50% 23178 | -3/Research | Search patrols dispatched 23228 | -3/Research | Spotted B-86 Titan 23250 | -3/Research | System corruption reached 30% 23268 | -3/Research | Core integrity fell below 20% 23289 | -3/Research | Entered Testing 23295 | -3/Testing | Found Prototype Energy Cannon 23295 | -3/Testing | Identified Null Cannon 23298 | -3/Testing | Lost 3 parts (2n1u) 23425 | -3/Testing | Spotted Striker 23425 | -3/Testing | Spotted Striker 23432 | -3/Testing | Found Prototype Ballistic Gun 23432 | -3/Testing | Identified Hyp. Multirail 23535 | -3/Testing | Lost 3 parts (3u) 23647 | -3/Testing | Discovered new exit (range 14) 23651 | -3/Testing | Identified exit to Research 23652 | -3/Testing | Entered Research 23652 | -2/Research | Evolved 2 slots: Propulsion x2 23697 | -2/Research | Identified exit to Access 23697 | -2/Research | Watched by a mysterious "MATRIX" hacker. 23823 | -2/Research | Found Prototype Device 23823 | -2/Research | Identified Exp. Shock Absorption System 23856 | -2/Research | Spotted B-90 Cyclops 23902 | -2/Research | Search patrols dispatched 23975 | -2/Research | Build established: Scavenger-Scout 24090 | -2/Research | Entered Access 24090 | -1/Access | Evolved 2 slots: Propulsion x2 24397 | -1/Access | Spotted B-99 Colossus 24537 | -1/Access | Identified exit to Surface 24652 | -1/Access | Crushed by falling debris 24660 | -1/Access | Spotted B-99 Colossus 24744 | -1/Access | Spotted B-99 Colossus 24744 | -1/Access | Spotted B-99 Colossus 24774 | -1/Access | Build established: Wizard-Scout 24806 | *** | Escaped! Last Messages --------------- Access Zone 7U. 24700_ Sealed Freight Elevator disabled. 24705_ Great Axe follow-up attack on P-80 Master. 24708_ P-80 Master Gamma Rifle severed. 24710_ P-80 Master destroyed. 24729_ Slug penetrates Wall. 24744_ Impulse Thruster destroyed. 24762_ System corrupted: Component data lost. 24769_ >> Machine Analyzer network decryption results: 24769_ Terminal x2 24780_ Connecting with Garrison Access... >>Seal Access door sealed. 24782_ >> Machine Analyzer network decryption results: 24782_ Terminal x1 24795_ System corrupted: Component data lost. 24805_ Connecting with Terminal... >>Open(Door) Sealed Barrier opened. 24805_ The Access Shell folds into the floor. Map ----- +----------------------------------------------------+ | #??????#"############"#??????????????????????????? | | #??????##????????????##??????????????????????????? | | ###########??????????????????????????????????????? | | # #??????????????????????????????????????? | | # #??????????????????????????????????????? | | # #??????????????????????????????????????? | | + #??????????????????????????????????????? | | # #??????????????????????????????????????? | | #! #??????????????????????????????????????? | | # ""Y"" #???????????????????????????? ?????????? | | # """"" #??????????????????????????? #????????? | | ###########??????????????????????????? #????????? | | #????????????????????????????????????? #????????? | | #????????????????????????????????????? #????????? | | #????""??????????????????????????????? #????????? | | #???"""??????????????????????????????? #????????? | | #???"F???????????????????????????????? #????????? | | #???"""??????????????????????????????? #????????? | | #????""??????????????????????????????? #????????? | | #????????????????????????????###?????# #????????? | | #???????????????????########## ####### #????????? | | #???????????????????" #????????? | | #?????????????BB????" #????????? | | ######+### BB "??" #????????? | | "??" #????????? | | "??" "@ #????????? | | "??" "" #????????? | | "??" #????????? | | ####+##### BB "??" #????????? | | #?? BB ???" """ """ #????????? | | #????? ???" """T""" #????????? | | #??????????########## ####### #????????? | | #???????????????????###???##" #????????? | | ????????????###############"# #????????? | | ?????????????# ## #????????? | | " ?????????????# = ## #????????? | | """" ?????????????# H## #????????? | | """"" ????????????# ## #????????? | | """"" #???????????# ## #????????? | | """" #???????????# ## ##???????? | | " #???????????##########+#+##" #???????? | | ##########?????############### #???????? | | ???????????????# # #???????? | | ???????????????# # ##### #???????? | | ???????????????# # #????#####???????? | | ???????????????# ! # #????????????????? | | ???????????????# + +????????????????? | | ???????????????# " # #????????????????? | | ???????????????# """ + #???"????????????? | | ???????????????# """ # #?""""???????#???? | +----------------------------------------------------+ Best States ------------- Heat Dissipation 68 Coolant Potential 100 Energy Generation 35 Energy Capacity 615 Matter Stores 300 Matter Capacity 300 Sight Range 22 Robot Scan Range 16 Terrain Scan Range 20 Terrain Scan Density 85 Jamming Range 12 Additional Mass Support 12 Armor Coverage 450 Resistance: KI 30 Resistance: TH 15 Resistance: EM 15 Melee Speed Boost 20 Phase Shifting 5 Evasion (%) 67 Melee Accuracy 24 Target Analysis 6 Armor Integrity Analysis 30 Recoil Reduction 4 Offensive Hacking 36 Defensive Hacking 24 Authchip Count 1 Item Schematics ----------------- Combat Drone Bay | -7/Data Miner | Free Lgt. Regenerative Plating | -7/Data Miner | Free Cld. Cesium-ion Thruster | -7/Data Miner | Free Gravity Neutralizer | -7/Data Miner | Free Com. Ion Cannon | -7/Data Miner | Free Lrn. Tractor Beam | -7/Data Miner | Free Antigrav System | -7/Data Miner | Free Imp. Remote Datajack | -7/Data Miner | Free Hvy. Flak Cannon | -7/Data Miner | Free Imp. Recalibrator | -7/Data Miner | Free Railgun | -7/Data Miner | Free Assault Drone Bay | -5/Zhirov | Free Exp. Heat Sink | -5/Zhirov | Free Exp. Optical Array | -5/Zhirov | Free Imp. Arc Thrower | -5/Zhirov | Free Robot Schematics ------------------ G-47 Trooper | -7/Data Miner | Free Y-54 Guardian | -7/Data Miner | Free G-50 Soldier | -7/Data Miner | Free M-22 Extractor | -7/Data Miner | Free S-27 Virus | -7/Data Miner | Free Fabricated ------------ Nothing Repaired ---------- Lrg. Storage Unit | 14% | -5/Factory Studied --------- None Alien Tech Used ----------------- Integrated Reactor Transdimensional Reconstructor Achievements -------------- None Challenges ------------ None Game ------ Seed PulsarConcussiveWheel Manual? 0 Play Time 03:04:07 Cumulative 297.9 hours Start 2026.02.26 @ 04:05:12 End 2026.02.26 @ 07:25:55 Sessions 2 Manual Loads 0 Difficulty Rogue Special Mode None Game No. 239 Rogue 239 Adventurer 0 Explorer 0 Win Type 0 Total 17 Types 8/0/7/2/0/0/0/0/0/0 Lore% 83 Gallery% 73 Achievement% 58 Wizard Run 0 Options --------- Layout 1 ASCII 0 Keyboard 0 Movement Numpad Keybinds 0 Fullscreen 1 Font 32/SmallcapsGlow Map View 77x35 Zoom Use 0% Tactical HUD 1 Map Filters NONE Filters NONE Steam 1 RUN: 0ded56bf-c068-4ca9-ada1-20b77133d56b